Cogmind - Beta 11 X3 *** ADVENTURER MODE // 2021.03.26 @ 13:16:00 Player: Luigi Panache Result: Destroyed by as-11873 with Assembled Blade Performance ------------- Evolutions (0) 0 Regions Visited (2) 400 Robots Destroyed (14) 70 Value Destroyed (307) 307 Prototype IDs (2) 40 Alien Tech Used (0) 0 Bonus (0) 0 TOTAL SCORE: 817 Bonus ------- None Cogmind --------- Core Integrity 0/250 Matter 300/300 Energy 100/100 System Corruption 0% Temperature Cool (0) Movement Core (100) Ox1 Location -10/Mines Parts ------- > --- POWER (1) -------- (None) > --- PROPULSION (2) --- (None) > --- UTILITY (2) ------ Small Storage Unit Targeting Computer > --- WEAPON (2) ------- (None) > --- INVENTORY (8) ---- Light Ion Engine Compact Wheel Compact Wheel Compact Wheel Peak State ------------ > --- POWER ------------ Light Ion Engine > --- PROPULSION ------- Light Treads Light Treads > --- UTILITY ---------- Small Storage Unit Targeting Computer > --- WEAPON ----------- Light Assault Rifle Light Assault Rifle > --- INVENTORY -------- Light Ion Engine Aluminum Leg Aluminum Leg Compact Wheel Compact Wheel Compact Wheel Small Laser [Rating: 7] Favorites ----------- Power Light Ion Engine Engine Light Ion Engine Propulsion Light Treads Treads Light Treads Leg Aluminum Leg Utility Small Storage Unit Storage Small Storage Unit Processor Targeting Computer Weapon Light Assault Rifle Energy Gun Small Laser Ballistic Gun Light Assault Rifle Build | -11 -10 -10 ------- Run | Scr Mat Min Slots Evolved . | . . . Power . | . . . Propulsion . | . . . Utility . | . . . Weapon . | . . . Parts Attached 9 | 2 2 5 Power . | . . . Engine . | . . . Core . | . . . Reactor . | . . . Propulsion 6 | 2 1 3 Treads 6 | 2 1 3 Leg . | . . . Wheel . | . . . Hover . | . . . Flight . | . . . Utility 1 | . 1 . Device . | . . . Storage . | . . . Processor 1 | . 1 . Hackware . | . . . Protection . | . . . Artifact . | . . . Weapon 2 | . . 2 Energy Gun 1 | . . 1 Energy Cannon . | . . . Ballistic Gun 1 | . . 1 Ballistic Cannon . | . . . Launcher . | . . . Special Weapon . | . . . Impact Weapon . | . . . Slashing Weapon . | . . . Piercing Weapon . | . . . Special Melee Weapon . | . . . Unidentified Prototypes . | . . . Parts Lost 7 | . . 7 Power 1 | . . 1 Propulsion 2 | . . 2 Utility . | . . . Weapon 4 | . . 4 Highest Loss Streak 7 | . . 7 Average Slot Usage (%) 95 | . 99 90 Engine 13 | . 14 12 Treads 26 | . 28 24 Storage 14 | . 14 14 Processor 13 | . 13 14 Ballistic Gun 26 | . 28 23 Naked Turns . | . . . Heaviest Build 10 | 10 10 10 Greatest Support 40 | 40 40 40 Greatest Overweight (x) 1 | . . 1 Average Overweight (x) . | . . . Largest Inventory Capacity 8 | 8 8 8 Average Capacity 8 | 8 8 8 Most Carried 8 | 7 8 7 Average Carried 6 | 6 7 6 Final Capacity 8 | 8 8 8 Final Carried 7 | 7 7 4 Class Distribution -------------------- 100% | Mutant Dominant Class ---------------- Mutant | -10/Materials Mutant | -10/Mines Resources | -11 -10 -10 ----------- Run | Scr Mat Min Matter Collected 332 | 230 96 6 Remotely . | . . . Salvage Created 350 | 51 210 89 Parts 27 | 2 18 7 Haulers Intercepted . | . . . Recyclers Shooed 1 | . . 1 Parts Field Recycled . | . . . Retrieved Matter . | . . . Parts Self-Destructed . | . . . Prevented . | . . . Kills | -11 -10 -10 ------- Run | Scr Mat Min Combat Hostiles Destroyed 13 | . 8 5 Guns 13 | . 8 5 Classes Destroyed 7 | 1 3 3 Tunneler 2 | . . 2 Recycler 1 | 1 . . Watcher 1 | . 1 . Swarmer 5 | . 5 . Grunt 3 | . 3 . Demolisher 2 | . . 2 Assembled 3 | . . 3 Best Kill Streak 6 | 1 6 3 Combat Bots Only 6 | . 6 3 Max Kills in Single Turn 1 | 1 1 1 Gunslinging . | . . . Exploded . | . . . Melee . | . . . Uniques/NPCs Destroyed . | . . . Combat | -11 -10 -10 -------- Run | Scr Mat Min Damage Taken 1091 | . 174 917 Core 264 | . 39 225 Absorbed by Shields . | . . . Core Remaining (%) 100 | 100 . . Volleys Fired 62 | 5 38 19 Largest 2 | 2 2 2 Hottest 60 | 40 40 60 Shots Fired 124 | 10 76 38 Gun 124 | 10 76 38 Cannon . | . . . Launcher . | . . . Special . | . . . Kinetic 122 | 10 76 36 Thermal 2 | . . 2 Explosive . | . . . Electromagnetic . | . . . Robot Hit Streak 25 | 8 25 13 Robot Miss Streak 2 | 1 2 2 Penetration Max . | . . . Secondary Targets 2 | . 2 . Max Gunslinging Chain 1 | . 1 . Shots Hit Robots 103 | 9 64 30 Core Hits 41 | 2 20 19 Critical Hits . | . . . Critical Kills . | . . . Critical Parts Destroyed . | . . . Melee Attacks . | . . . Impact . | . . . Slashing . | . . . Piercing . | . . . Sneak Attacks . | . . . Combat Hostiles . | . . . Follow-up Attacks . | . . . Damage Inflicted 802 | 68 443 291 Guns 766 | 68 443 255 Cannons . | . . . Explosions . | . . . Melee . | . . . Ramming 36 | . . 36 Kinetic 745 | 68 443 234 Thermal 21 | . . 21 Explosive . | . . . Electromagnetic . | . . . Impact . | . . . Slashing . | . . . Piercing . | . . . Highest Corruption . | . . . Average Corruption . | . . . Corruption Purged . | . . . Overload Shots . | . . . Overflow Damage . | . . . Projectiles . | . . . Explosions . | . . . Melee . | . . . Knockbacks . | . . . Impact . | . . . Kinetic . | . . . Secondary . | . . . Self-Inflicted Damage 10 | . . 10 Shots . | . . . Rammed 19 | . . 19 Targets Rammed 19 | . . 19 Kicked . | . . . Crushed . | . . . Highest Temperature 20 | . 12 20 Average Temperature 14 | . 8 18 Received Heat Transfer 99 | . 39 60 Siege Activations . | . . . Robots Corrupted . | . . . Combat Hostiles . | . . . Parts Fried . | . . . Impact Corruptions . | . . . Robots Melted . | . . . Combat Hostiles . | . . . Parts Melted . | . . . Heat Transferred 50 | . . 50 Parts Sabotaged . | . . . Parts Stolen . | . . . Parts Stripped . | . . . Power Chain Reactions . | . . . Missiles Intercepted . | . . . Alert | -11 -10 -10 ------- Run | Scr Mat Min Peak Influence 240 | 5 240 139 Initial 79 | . 2 79 Average 113 | 3 130 109 Maximum Alert Level 1 | . 1 . Low Security (%) 83 | 100 70 100 Level 1 16 | . 29 . Level 2 . | . . . Level 3 . | . . . Level 4 . | . . . Level 5 . | . . . High Security . | . . . Max Security . | . . . Squads Dispatched . | . . . Investigation . | . . . Extermination . | . . . Reinforcement . | . . . Assault . | . . . Garrison . | . . . Intercept . | . . . Construction Impeded . | . . . Haulers Reinforced . | . . . Stealth | -11 -10 -10 --------- Run | Scr Mat Min Distress Signals 2 | . 2 . Communications Jammed . | . . . Distress Signals . | . . . Times Spotted 20 | . 12 8 Peak Tracking Total 5 | . 5 4 Tactical Retreats 1 | . 1 . Traps | -11 -10 -10 ------- Run | Scr Mat Min Traps Triggered . | . . . Indirectly . | . . . Trap Hack Attempts . | . . . Triggered . | . . . Disarmed . | . . . Reprogrammed . | . . . Reused . | . . . Traps Extracted . | . . . Installed . | . . . Triggered . | . . . Machines | -11 -10 -10 ---------- Run | Scr Mat Min Machines Disabled . | . . . Max in Single Turn . | . . . Machines Sabotaged . | . . . Garrisons Compromised . | . . . Overloaded Fab Kills . | . . . Fab Network Shutdowns . | . . . Hacking | -11 -10 -10 --------- Run | Scr Mat Min Machines Accessed 2 | . 2 . Terminals 1 | . 1 . Fabricators . | . . . Repair Stations . | . . . Recycling Units 1 | . 1 . Scanalyzers . | . . . Garrison Access . | . . . Total Hacks 11 | . 11 . Successful 4 | . 4 . Failed 7 | . 7 . Catastrophic . | . . . Database Lockouts . | . . . Manual 8 | . 8 . Terminals 7 | . 7 . Fabricators . | . . . Repair Stations . | . . . Recycling Units 4 | . 4 . Scanalyzers . | . . . Garrison Access . | . . . Terminal Hacks 2 | . 2 . Part Schematic 1 | . 1 . Prototype ID Bank 1 | . 1 . Fabricator Hacks . | . . . Repair Station Hacks . | . . . Recycling Unit Hacks . | . . . Scanalyzer . | . . . Garrison Access Hacks . | . . . Unauthorized Hacks 2 | . 2 . Terminals 1 | . 1 . Botnet 1 | . 1 . Fabricators . | . . . Repair Stations . | . . . Recycling Units 1 | . 1 . Mask 1 | . 1 . Scanalyzers . | . . . Garrison Access . | . . . Data Cores Recovered . | . . . Used . | . . . Hacking Detections 2 | . 2 . Full Trace Events . | . . . Feedback Events . | . . . Feedback Blocked . | . . . Robot Schematics Acquired . | . . . Robots Built . | . . . Matter . | . . . Time . | . . . Total Robot Build Rating . | . . . Part Schematics Acquired 1 | . 1 . Parts Built . | . . . Matter . | . . . Time . | . . . Total Part Build Rating . | . . . Parts Repaired . | . . . Time . | . . . Parts Recycled . | . . . Recycled Matter . | . . . Retrieved Matter . | . . . Retrieved Components . | . . . Parts Scanalyzed . | . . . Part Schematics Acquired . | . . . Parts Damaged . | . . . Bothacking | -11 -10 -10 ------------ Run | Scr Mat Min Used RIF Installer . | . . . Robots Hacked . | . . . Non-combat . | . . . Combat . | . . . Robot Hacks Applied . | . . . Relay Couplers Released . | . . . Robots Rewired . | . . . Allies Hacked . | . . . Hacks Repelled . | . . . Allies | -11 -10 -10 -------- Run | Scr Mat Min Total Allies . | . . . Largest Group . | . . . Highest-Rated Group . | . . . Highest-Rated Ally . | . . . Total Orders . | . . . Ally Attacks . | . . . Total Damage . | . . . Kills . | . . . Allies Corrupted . | . . . Allies Melted . | . . . Intel | -11 -10 -10 ------- Run | Scr Mat Min Robot Analysis Total . | . . . Derelict Logs Recovered . | . . . Drone Launches . | . . . Drone Recoveries . | . . . Exploration | -11 -10 -10 ------------- Run | Scr Mat Min Turns Passed 519 | 36 291 192 Spaces Moved 201 | 13 117 71 Core 1 | . . 1 Treads 198 | 11 117 70 Legs 2 | 2 . . Wheels . | . . . Hover . | . . . Flight . | . . . Fastest Speed 100 | 120 160 100 Average Speed 159 | 153 160 159 Slowest Speed 160 | 160 160 160 Overloaded Moves . | . . . Propulsion Burnouts . | . . . Robots Hopped . | . . . Cave-ins Triggered . | . . . Exploration Rate (%) 16 | 2 27 20 Regions Visited 2 Branch Regions 1 Pre-discovered Areas . | . . . Known Exits Taken . | . . . Unknown Exits Taken 2 | 1 1 . Scrap Searched . | . . . Spaces Dug . | . . . Terrain Destroyed . | . . . Melee . | . . . Projectile . | . . . AOE . | . . . Terrain Rammed . | . . . Walls Destroyed . | . . . Machines Disabled . | . . . Actions | -11 -10 -10 --------- Run | Scr Mat Min Total 295 | 20 161 114 Wait . | . . . Move 199 | 12 116 71 Hop . | . . . Pick Up 3 | 1 2 . Fast Attach 3 | . 1 2 Attach 3 | . . 3 Detach . | . . . Swap 3 | 2 1 . Drop 3 | . 3 . Fire 62 | 5 38 19 Melee . | . . . Ram 12 | . . 12 Kick . | . . . Crush 7 | . . 7 Escape Stasis . | . . . Rewire . | . . . Trap . | . . . Miscellaneous . | . . . Route ------- -11/Scrapyard -10/Materials -10/Mines History --------- Turn | Location | Event 1 | -11/Scrapyard | Discovered new exit (range 3) 37 | -11/Scrapyard | Entered Materials 267 | -10/Materials | Discovered new exit (range 14) 317 | -10/Materials | Build established: Mutant 328 | -10/Materials | Entered Mines 329 | -10/Mines | Assembled infested the area 494 | -10/Mines | Core integrity fell below 50% 516 | -10/Mines | Core integrity fell below 20% 520 | -10/Mines | Destroyed by as-11873 with Assembled Blade Last Messages --------------- 00499_ K-01 Serf collects debris. 00500_ Slammed into as-24727. 00502_ Lgt. Treads destroyed. 00502_ K-01 Serf collects debris. 00503_ Acquired Lgt. Treads. 00503_ K-01 Serf suffers critical hit. 00504_ Slammed into as-11873. 00505_ Lgt. Treads severed. 00506_ Slammed into as-11873. 00507_ Lgt. Treads destroyed. 00507_ Lgt. Ion Engine destroyed. 00507_ Slammed into as-11873. 00508_ Destabilizing: System interference. 00508_ Targeting Computer temporarily disabled. 00509_ Slammed into as-11873. 00510_ Destabilizing: Core damaged (-2). 00511_ Slammed into as-11873. 00517_ U-05 Engineer lays Concrete. 00517_ Slammed into as-11873. 00519_ U-05 Engineer lays Concrete. Map ----- +----------------------------------------------------+ | ??????????#|! #??????????????????????? | | ????###??##|% #??????????????????????? | | ???## ###=%! #??????????????????????? | | ??## = ##??????????????????????? | | ??# ##???????????????????????? | | ??# #????????????????????????? | | ??## ##????????????????????????? | | ???### ## #####??????????????????????? | | ?????###?# #??????????????????????? | | ?????????# ### #??????????????????????? | | ?????????# #?? ???????????????????????? | | ?????????# #?? ???????????????????????? | | ?????????# #?? ???????????????????????? | | ?????????# #?? ???????????????????????? | | ?????????# #?# ???????????????????????? | | ?????????# #?# ???????????????????????? | | ???####### #?# ?????????# ???????????? | | ???# #?# #???????? ##?????????? | | ???# ########?#u#???????? #?????????? | | ???# #??????### ####???? ##????????? | | ???# #?????## # # #???? ?????????? | | ?### ####### # # #???? %??????????? | | ?# ## # # ##??? == ???????????? | | ?# # ## ## #??? %%#???????????? | | ?# """ # ## # #??? #???????????? | | ?# """ #####@## ##??? ##??????????? | | ?# """ a%## #?##% ##?????????? | | ?# #####a## ###% #?????????? | | ?# """ ## #%# ### #?????????? | | ?# """ ### #%#####% #??????????? | | ?# """ #?###%% = ###??????????? | | ?# #??######### ##????????????? | | ?? ###########?????????????? | | ?# #### ????????????????????????? | | ?##########??# ????????????????????????? | | ?????????????# ????????????????????????? | | ?????????????# ????????????????????????? | | ?????????????# ????????????????????????? | | ?????????????# ????????????????????????? | | ?????????????# ????????????????????????? | | ?????????????#?????????????????????????? | | ???????????????????????????????????????? | | ???????????????????????????????????????? | | ???????????????????????????????????????? | | ???????????????????????????????????????? | | ???????????????????????????????????????? | | ???????????????????????????????????????? | | ???????????????????????????????????????? | | ???????????????????????????????????????? | | ???????????????????????????????????????? | +----------------------------------------------------+ Best States ------------- Heat Dissipation 25 Energy Generation 10 Energy Capacity 125 Matter Stores 300 Matter Capacity 300 Sight Range 16 Terrain Scan Density 10 Resistance: KI 20 Resistance: TH 20 Resistance: EX 20 Resistance: EM 20 Resistance: I 20 Resistance: S 20 Resistance: P 20 Evasion (%) 40 Targeting Accuracy 5 Recoil Reduction 2 Offensive Hacking 10 Item Schematics ----------------- Huge Storage Unit | -10/Materials | Hacked Robot Schematics ------------------ None Fabricated ------------ Nothing Alien Tech Used ----------------- None Achievements -------------- None Challenges ------------ None Game ------ Seed ReactionDefenseSystem Manual? 0 Play Time 00:05:08 Cumulative 319.9 hours Start 2021.03.26 @ 13:12:16 End 2021.03.26 @ 13:16:00 Sessions 1 Manual Loads 0 Difficulty Adventurer Special Mode None Game No. 317 Rogue 146 Adventurer 93 Explorer 78 Win Type - Total 23 Types 16/0/5/2/0/0/0/0/0 Lore% 80 Gallery% 88 Achievement% 70 Wizard Run 0 Options --------- ASCII 0 Keyboard 0 Movement Numpad Keybinds 0 Fullscreen 2 Font 18/TerminusBold Map View 76x50 Tactical HUD 1 Map Filters NONE Filters NONE Steam 1 RUN: 814c8406-50b4-4e3a-99cd-14ee7e64e8e3